[Event "Vastgota Open 2022"]
[Site "Skara stadshotell, Jarnvagsgatan 5, Skara, Sweden"]
[Date "2022.10.30"]
[Round "8.8"]
[White "Johnson, Daniel"]
[Black "Eriksson, Magnus"]
[Result "1-0"]
[TimeControl "30 minutes + 10 seconds per move from move one."]
[WhiteFideId "1721283"]
[BlackFideId "1709941"]
[WhiteElo "2155"]
[BlackElo "1766"]

1. d4 {[%clk 00:28:14]} {[%emt 00:02:00]} Nf6 {[%clk 00:30:07]} {[%emt
00:00:18]} 2. c4 {[%clk 00:28:22]} {[%emt 00:00:03]} e6 {[%clk 00:30:13]}
{[%emt 00:00:04]} 3. Nc3 {[%clk 00:28:30]} {[%emt 00:00:03]} Bb4 {[%clk
00:29:09]} {[%emt 00:01:13]} 4. Qc2 {[%clk 00:28:38]} {[%emt 00:00:02]} d5
{[%clk 00:28:22]} {[%emt 00:00:56]} 5. cxd5 {[%clk 00:28:36]} {[%emt 00:00:13]}
exd5 {[%clk 00:28:06]} {[%emt 00:00:26]} 6. Bg5 {[%clk 00:28:27]} {[%emt
00:00:19]} O-O {[%clk 00:25:41]} {[%emt 00:02:35]} 7. e3 {[%clk 00:28:34]}
{[%emt 00:00:03]} h6 {[%clk 00:25:36]} {[%emt 00:00:15]} 8. Bh4 {[%clk
00:28:42]} {[%emt 00:00:03]} c6 {[%clk 00:20:47]} {[%emt 00:04:58]} 9. Bd3
{[%clk 00:28:47]} {[%emt 00:00:05]} Nbd7 {[%clk 00:18:41]} {[%emt 00:02:18]} 10.
Nge2 {[%clk 00:28:43]} {[%emt 00:00:12]} Be7 {[%clk 00:16:25]} {[%emt
00:02:26]} 11. O-O {[%clk 00:28:42]} {[%emt 00:00:11]} b6 {[%clk 00:16:32]}
{[%emt 00:00:05]} 12. f3 {[%clk 00:28:12]} {[%emt 00:00:37]} Bb7 {[%clk
00:16:27]} {[%emt 00:00:16]} 13. Bf2 {[%clk 00:28:19]} {[%emt 00:00:03]} Rc8
{[%clk 00:16:34]} {[%emt 00:00:03]} 14. Rad1 {[%clk 00:28:27]} {[%emt
00:00:02]} c5 {[%clk 00:15:22]} {[%emt 00:01:22]} 15. Qd2 {[%clk 00:28:10]}
{[%emt 00:00:27]} cxd4 {[%clk 00:15:17]} {[%emt 00:00:15]} 16. exd4 {[%clk
00:27:39]} {[%emt 00:00:41]} Bd6 {[%clk 00:13:15]} {[%emt 00:02:13]} 17. Bg3
{[%clk 00:27:47]} {[%emt 00:00:02]} Nb8 {[%clk 00:12:43]} {[%emt 00:00:42]} 18.
Bf5 {[%clk 00:27:44]} {[%emt 00:00:13]} Rc6 {[%clk 00:11:12]} {[%emt 00:01:40]}
19. Rfe1 {[%clk 00:26:26]} {[%emt 00:01:27]} Bxg3 {[%clk 00:11:14]} {[%emt
00:00:09]} 20. Nxg3 {[%clk 00:26:28]} {[%emt 00:00:08]} Re8 {[%clk 00:07:29]}
{[%emt 00:03:56]} 21. Rxe8+ {[%clk 00:23:55]} {[%emt 00:02:43]} Nxe8 {[%clk
00:07:02]} {[%emt 00:00:36]} 22. Re1 {[%clk 00:23:48]} {[%emt 00:00:16]} Nf6
{[%clk 00:07:00]} {[%emt 00:00:12]} 23. Nce2 {[%clk 00:22:34]} {[%emt
00:01:24]} Rc7 {[%clk 00:06:57]} {[%emt 00:00:13]} 24. Nf4 {[%clk 00:21:04]}
{[%emt 00:01:41]} Re7 {[%clk 00:07:05]} {[%emt 00:00:02]} 25. Rxe7 {[%clk
00:20:31]} {[%emt 00:00:43]} Qxe7 {[%clk 00:07:14]} {[%emt 00:00:01]} 26. Bc2
{[%clk 00:20:39]} {[%emt 00:00:02]} Bc8 {[%clk 00:06:16]} {[%emt 00:01:08]} 27.
Qc3 {[%clk 00:19:53]} {[%emt 00:00:55]} Qd8 {[%clk 00:06:10]} {[%emt 00:00:15]}
28. Nd3 {[%clk 00:18:42]} {[%emt 00:01:22]} Be6 {[%clk 00:05:02]} {[%emt
00:01:18]} 29. Ne5 {[%clk 00:18:30]} {[%emt 00:00:22]} Qc8 {[%clk 00:05:08]}
{[%emt 00:00:04]} 30. Qd3 {[%clk 00:17:06]} {[%emt 00:01:34]} Nc6 {[%clk
00:05:17]} {[%emt 00:00:02]} 31. Nxc6 {[%clk 00:15:02]} {[%emt 00:02:13]} Qxc6
{[%clk 00:05:25]} {[%emt 00:00:03]} 32. b3 {[%clk 00:15:11]} g6 {[%clk
00:05:25]} {[%emt 00:00:09]} 33. h4 {[%clk 00:14:34]} {[%emt 00:00:48]} Qc7
{[%clk 00:05:23]} {[%emt 00:00:12]} 34. Kf2 {[%clk 00:09:11]} {[%emt 00:05:33]}
Qf4 {[%clk 00:05:08]} {[%emt 00:00:25]} 35. Ne2 {[%clk 00:09:03]} {[%emt
00:00:18]} Ng4+ {[%clk 00:04:50]} {[%emt 00:00:28]} 36. Ke1 {[%clk 00:08:34]}
{[%emt 00:00:39]} Qh2 {[%clk 00:03:42]} {[%emt 00:01:18]} 37. fxg4 {[%clk
00:08:33]} {[%emt 00:00:10]} Qxh4+ {[%clk 00:03:21]} {[%emt 00:00:31]} 38. Qg3
{[%clk 00:08:30]} {[%emt 00:00:13]} Qg5 {[%clk 00:02:49]} {[%emt 00:00:42]} 39.
Qb8+ {[%clk 00:08:15]} {[%emt 00:00:25]} Kh7 {[%clk 00:02:53]} {[%emt
00:00:06]} 40. Qf4 {[%clk 00:08:09]} {[%emt 00:00:16]} Qh4+ {[%clk 00:02:44]}
{[%emt 00:00:19]} 41. Kd2 {[%clk 00:08:15]} {[%emt 00:00:03]} Qxg4 {[%clk
00:02:10]} {[%emt 00:00:44]} 42. Qxg4 {[%clk 00:08:16]} {[%emt 00:00:10]} Bxg4
{[%clk 00:02:18]} {[%emt 00:00:01]} 43. Nf4 {[%clk 00:08:22]} {[%emt 00:00:05]}
h5 {[%clk 00:02:06]} {[%emt 00:00:21]} 44. Nxd5 {[%clk 00:08:22]} {[%emt
00:00:10]} Kg7 {[%clk 00:02:15]} {[%emt 00:00:02]} 45. Bd1 {[%clk 00:07:53]}
{[%emt 00:00:41]} Bd7 {[%clk 00:01:49]} {[%emt 00:00:34]} 46. Ke3 {[%clk
00:07:34]} {[%emt 00:00:29]} f6 {[%clk 00:01:42]} {[%emt 00:00:17]} 47. Nc3
{[%clk 00:07:23]} {[%emt 00:00:22]} h4 {[%clk 00:01:42]} {[%emt 00:00:10]} 48.
d5 {[%clk 00:05:52]} {[%emt 00:01:41]} g5 {[%clk 00:01:32]} {[%emt 00:00:19]}
49. Be2 {[%clk 00:05:10]} {[%emt 00:00:53]} f5 {[%clk 00:01:36]} {[%emt
00:00:04]} 50. Bb5 {[%clk 00:04:54]} {[%emt 00:00:27]} f4+ {[%clk 00:00:44]}
{[%emt 00:01:03]} 51. Kf3 {[%clk 00:03:53]} {[%emt 00:01:10]} h3 {[%clk
00:00:49]} {[%emt 00:00:05]} 52. gxh3 {[%clk 00:03:36]} {[%emt 00:00:27]} Bxh3
{[%clk 00:00:57]} {[%emt 00:00:02]} 53. Ne4 {[%clk 00:02:52]} {[%emt 00:00:54]}
Kh6 {[%clk 00:00:22]} {[%emt 00:00:45]} 54. Be8 {[%clk 00:02:14]} {[%emt
00:00:48]} Bf1 {[%emt 00:00:23]} 1-0

[Event "Vastgota Open 2022"]
[Site "Skara stadshotell, Jarnvagsgatan 5, Skara, Sweden"]
[Date "2022.10.30"]
[Round "8.9"]
[White "Bjorklund, Thomas"]
[Black "Ryefalk, Lucas"]
[Result "1-0"]
[TimeControl "30 minutes + 10 seconds per move from move one."]
[WhiteFideId "1724576"]
[BlackFideId "1769243"]
[WhiteElo "2122"]
[BlackElo "1545"]

1. e4 {[%clk 00:30:16]} {[%emt 00:00:03]} e5 {[%clk 00:30:13]} {[%emt
00:00:07]} 2. Nf3 {[%clk 00:30:23]} {[%emt 00:00:03]} Nc6 {[%clk 00:30:19]}
{[%emt 00:00:05]} 3. Bc4 {[%clk 00:30:29]} {[%emt 00:00:04]} Nf6 {[%clk
00:30:15]} {[%emt 00:00:13]} 4. d3 {[%clk 00:30:33]} {[%emt 00:00:06]} Bc5
{[%clk 00:30:15]} {[%emt 00:00:11]} 5. O-O {[%clk 00:30:34]} {[%emt 00:00:09]}
a6 {[%clk 00:30:09]} {[%emt 00:00:16]} 6. a3 {[%clk 00:30:39]} {[%emt
00:00:06]} Ba7 {[%clk 00:30:06]} {[%emt 00:00:14]} 7. Qe2 {[%clk 00:30:25]}
{[%emt 00:00:22]} d6 {[%clk 00:29:50]} {[%emt 00:00:27]} 8. Be3 {[%clk
00:30:25]} {[%emt 00:00:10]} Bxe3 {[%clk 00:29:19]} {[%emt 00:00:41]} 9. fxe3
{[%clk 00:30:27]} {[%emt 00:00:08]} O-O {[%clk 00:27:32]} {[%emt 00:01:57]} 10.
Nc3 {[%clk 00:30:27]} {[%emt 00:00:09]} h6 {[%clk 00:26:25]} {[%emt 00:01:18]}
11. h3 {[%clk 00:30:20]} {[%emt 00:00:16]} Re8 {[%clk 00:25:58]} {[%emt
00:00:37]} 12. Qf2 {[%clk 00:30:18]} {[%emt 00:00:12]} Be6 {[%clk 00:25:18]}
{[%emt 00:00:51]} 13. Nd5 {[%clk 00:29:42]} {[%emt 00:00:46]} Nh7 {[%clk
00:24:08]} {[%emt 00:01:20]} 14. Nh4 {[%clk 00:29:18]} {[%emt 00:00:33]} Na5
{[%clk 00:23:00]} {[%emt 00:01:18]} 15. Ba2 {[%clk 00:28:10]} {[%emt 00:01:18]}
Ng5 {[%clk 00:21:27]} {[%emt 00:01:43]} 16. b4 {[%clk 00:27:48]} {[%emt
00:00:33]} Nc6 {[%clk 00:20:56]} {[%emt 00:00:40]} 17. Nf5 {[%clk 00:27:17]}
{[%emt 00:00:41]} Rf8 {[%clk 00:19:24]} {[%emt 00:01:43]} 18. h4 {[%clk
00:27:13]} {[%emt 00:00:14]} Nh7 {[%clk 00:19:09]} {[%emt 00:00:25]} 19. Qg3
{[%clk 00:26:55]} {[%emt 00:00:27]} Bxf5 {[%clk 00:18:09]} {[%emt 00:01:10]} 20.
Rxf5 {[%clk 00:26:53]} {[%emt 00:00:12]} Ne7 {[%clk 00:17:08]} {[%emt
00:01:12]} 21. Rf3 {[%clk 00:25:53]} {[%emt 00:01:10]} Nxd5 {[%clk 00:16:37]}
{[%emt 00:00:40]} 22. Bxd5 {[%clk 00:25:57]} {[%emt 00:00:06]} c6 {[%clk
00:16:20]} {[%emt 00:00:28]} 23. Bb3 {[%clk 00:26:00]} {[%emt 00:00:07]} Qe7
{[%clk 00:15:28]} {[%emt 00:01:01]} 24. Raf1 {[%clk 00:26:00]} {[%emt
00:00:10]} Rad8 {[%clk 00:13:20]} {[%emt 00:02:19]} 25. Rxf7 {[%clk 00:25:20]}
{[%emt 00:00:49]} Rxf7 {[%clk 00:13:18]} {[%emt 00:00:12]} 26. Rxf7 {[%clk
00:25:00]} {[%emt 00:00:31]} Qxf7 {[%clk 00:13:21]} {[%emt 00:00:07]} 27. Bxf7+
{[%clk 00:25:04]} {[%emt 00:00:05]} Kxf7 {[%clk 00:13:26]} {[%emt 00:00:06]} 28.
d4 {[%clk 00:24:28]} {[%emt 00:00:46]} exd4 {[%clk 00:12:47]} {[%emt 00:00:48]}
29. exd4 {[%clk 00:24:35]} {[%emt 00:00:04]} Nf6 {[%clk 00:12:37]} {[%emt
00:00:20]} 30. h5 {[%clk 00:24:16]} {[%emt 00:00:28]} Re8 {[%clk 00:11:36]}
{[%emt 00:01:12]} 31. e5 {[%clk 00:24:04]} {[%emt 00:00:21]} dxe5 {[%clk
00:11:43]} {[%emt 00:00:05]} 32. dxe5 {[%clk 00:24:08]} {[%emt 00:00:05]} Nxh5
{[%clk 00:11:17]} {[%emt 00:00:36]} 33. Qf3+ {[%clk 00:24:08]} {[%emt
00:00:09]} Kg6 {[%clk 00:11:24]} {[%emt 00:00:03]} 34. Qg4+ {[%clk 00:24:15]}
{[%emt 00:00:03]} 1-0

[Event "Vastgota Open 2022"]
[Site "Skara stadshotell, Jarnvagsgatan 5, Skara, Sweden"]
[Date "2022.10.30"]
[Round "8.10"]
[White "Ronneland, Daniel"]
[Black "Bengtsson, Jessica"]
[Result "1-0"]
[TimeControl "30 minutes + 10 seconds per move from move one."]
[BlackTitle "WFM"]
[WhiteFideId "1702130"]
[BlackFideId "1711083"]
[WhiteElo "2206"]
[BlackElo "2003"]

1. e4 {[%clk 00:30:13]} {[%emt 00:00:07]} e5 {[%clk 00:30:08]} {[%emt
00:00:12]} 2. Nf3 {[%clk 00:30:14]} {[%emt 00:00:09]} Nc6 {[%clk 00:30:13]}
{[%emt 00:00:06]} 3. Bb5 {[%clk 00:30:14]} {[%emt 00:00:10]} Nf6 {[%clk
00:30:16]} {[%emt 00:00:07]} 4. d3 {[%clk 00:29:56]} {[%emt 00:00:28]} Bc5
{[%clk 00:29:58]} {[%emt 00:00:27]} 5. O-O {[%clk 00:29:39]} {[%emt 00:00:27]}
d6 {[%clk 00:29:41]} {[%emt 00:00:28]} 6. c3 {[%clk 00:29:23]} {[%emt
00:00:26]} O-O {[%clk 00:28:58]} {[%emt 00:00:53]} 7. h3 {[%clk 00:28:08]}
{[%emt 00:01:24]} Qe7 {[%clk 00:24:58]} {[%emt 00:04:11]} 8. Re1 {[%clk
00:27:09]} {[%emt 00:01:07]} Nd8 {[%clk 00:22:33]} {[%emt 00:02:37]} 9. Nbd2
{[%clk 00:25:44]} {[%emt 00:01:34]} c6 {[%clk 00:21:43]} {[%emt 00:01:00]} 10.
Ba4 {[%clk 00:20:12]} {[%emt 00:05:42]} h6 {[%clk 00:17:38]} {[%emt 00:04:15]}
11. Nf1 {[%clk 00:20:09]} {[%emt 00:00:13]} Bb6 {[%clk 00:13:00]} {[%emt
00:04:48]} 12. Ng3 {[%clk 00:19:31]} {[%emt 00:00:48]} Nh7 {[%clk 00:11:00]}
{[%emt 00:02:10]} 13. d4 {[%clk 00:18:58]} {[%emt 00:00:43]} Ng5 {[%clk
00:09:54]} {[%emt 00:01:16]} 14. Nf5 {[%clk 00:16:41]} {[%emt 00:02:26]} Nxf3+
{[%clk 00:08:45]} {[%emt 00:01:22]} 15. Qxf3 {[%clk 00:16:42]} {[%emt
00:00:09]} Bxf5 {[%clk 00:08:41]} {[%emt 00:00:14]} 16. exf5 {[%clk 00:16:37]}
{[%emt 00:00:15]} f6 {[%clk 00:06:07]} {[%emt 00:02:44]} 17. Bb3+ {[%clk
00:15:10]} {[%emt 00:01:37]} Kh8 {[%clk 00:05:50]} {[%emt 00:00:27]} 18. g4
{[%clk 00:14:41]} {[%emt 00:00:38]} Nf7 {[%clk 00:04:31]} {[%emt 00:01:29]} 19.
h4 {[%clk 00:14:40]} {[%emt 00:00:11]} d5 {[%clk 00:04:13]} {[%emt 00:00:28]}
20. Qg3 {[%clk 00:11:03]} {[%emt 00:03:45]} Bc7 {[%clk 00:03:49]} {[%emt
00:00:37]} 21. f4 {[%clk 00:10:48]} {[%emt 00:00:25]} e4 {[%clk 00:02:35]}
{[%emt 00:01:25]} 22. Kg2 {[%clk 00:10:28]} {[%emt 00:00:28]} b5 {[%clk
00:02:29]} {[%emt 00:00:17]} 23. Be3 {[%clk 00:10:12]} {[%emt 00:00:25]} Nd6
{[%clk 00:02:30]} {[%emt 00:00:08]} 24. Rh1 {[%clk 00:10:04]} {[%emt 00:00:19]}
a5 {[%clk 00:02:30]} {[%emt 00:00:11]} 25. a3 {[%clk 00:08:35]} {[%emt
00:01:39]} Nc4 {[%clk 00:02:01]} {[%emt 00:00:37]} 26. Bxc4 {[%clk 00:08:35]}
{[%emt 00:00:11]} bxc4 {[%clk 00:02:09]} {[%emt 00:00:03]} 27. Rag1 {[%clk
00:07:31]} {[%emt 00:01:13]} Rab8 {[%clk 00:01:55]} {[%emt 00:00:24]} 28. Bc1
{[%clk 00:07:38]} {[%emt 00:00:03]} c5 {[%clk 00:01:32]} {[%emt 00:00:34]} 29.
g5 {[%clk 00:07:41]} {[%emt 00:00:06]} cxd4 {[%clk 00:01:31]} {[%emt 00:00:12]}
30. cxd4 {[%clk 00:07:14]} {[%emt 00:00:37]} Rb3 {[%clk 00:01:39]} {[%emt
00:00:02]} 31. Qg4 {[%clk 00:07:16]} {[%emt 00:00:06]} e3 {[%clk 00:01:32]}
{[%emt 00:00:19]} 32. Kf1 {[%clk 00:06:22]} {[%emt 00:01:03]} Qe4 {[%clk
00:01:22]} {[%emt 00:00:21]} 33. gxh6 {[%clk 00:06:13]} {[%emt 00:00:19]} Qd3+
{[%clk 00:00:23]} {[%emt 00:01:09]} 34. Ke1 {[%clk 00:06:22]} g5 {[%clk
00:00:20]} {[%emt 00:00:13]} 35. fxg6 {[%clk 00:06:10]} {[%emt 00:00:22]} Rg8
{[%clk 00:00:11]} {[%emt 00:00:19]} 36. h7 {[%clk 00:03:11]} {[%emt 00:03:09]}
Re8 {[%clk 00:00:11]} {[%emt 00:00:10]} 37. g7+ {[%clk 00:03:02]} {[%emt
00:00:18]} Kxh7 {[%clk 00:00:19]} {[%emt 00:00:03]} 38. Qh5+ {[%clk 00:02:52]}
{[%emt 00:00:19]} 1-0

[Event "Vastgota Open 2022"]
[Site "Skara stadshotell, Jarnvagsgatan 5, Skara, Sweden"]
[Date "2022.10.30"]
[Round "9.1"]
[White "Aroven, Mikael"]
[Black "Blomqvist, Erik"]
[Result "0-1"]
[TimeControl "30 minutes + 10 seconds per move from move one."]
[BlackTitle "GM"]
[WhiteFideId "1709534"]
[BlackFideId "1709437"]
[WhiteElo "2089"]
[BlackElo "2490"]

1. c4 {[%clk 00:30:16]} {[%emt 00:00:03]} e5 {[%clk 00:30:17]} {[%emt
00:00:03]} 2. Nc3 {[%clk 00:30:11]} {[%emt 00:00:16]} Nf6 {[%clk 00:30:25]}
{[%emt 00:00:02]} 3. Nf3 {[%clk 00:30:19]} {[%emt 00:00:02]} e4 {[%clk
00:30:27]} {[%emt 00:00:08]} 4. Nd4 {[%clk 00:30:19]} {[%emt 00:00:10]} Nc6
{[%clk 00:30:17]} {[%emt 00:00:20]} 5. Nxc6 {[%clk 00:29:11]} {[%emt 00:01:18]}
dxc6 {[%clk 00:30:23]} {[%emt 00:00:04]} 6. e3 {[%clk 00:28:44]} {[%emt
00:00:36]} Bf5 {[%clk 00:30:04]} {[%emt 00:00:30]} 7. Qc2 {[%clk 00:27:06]}
{[%emt 00:01:47]} Qd7 {[%clk 00:30:05]} {[%emt 00:00:10]} 8. b3 {[%clk
00:26:26]} {[%emt 00:00:50]} h5 {[%clk 00:29:45]} {[%emt 00:00:30]} 9. h3
{[%clk 00:26:19]} {[%emt 00:00:17]} h4 {[%clk 00:29:49]} {[%emt 00:00:06]} 10.
Bb2 {[%clk 00:26:08]} {[%emt 00:00:21]} O-O-O {[%clk 00:29:33]} {[%emt
00:00:26]} 11. O-O-O {[%clk 00:25:56]} {[%emt 00:00:22]} Rh5 {[%clk 00:29:01]}
{[%emt 00:00:42]} 12. Ne2 {[%clk 00:25:18]} {[%emt 00:00:47]} Rg5 {[%clk
00:28:27]} {[%emt 00:00:44]} 13. Be5 {[%clk 00:21:44]} {[%emt 00:03:44]} Ba3+
{[%clk 00:27:59]} {[%emt 00:00:39]} 14. Kb1 {[%clk 00:21:42]} {[%emt 00:00:12]}
Qe7 {[%clk 00:25:02]} {[%emt 00:03:07]} 15. Bf4 {[%clk 00:21:13]} {[%emt
00:00:38]} Rh5 {[%clk 00:24:35]} {[%emt 00:00:37]} 16. g4 {[%clk 00:19:07]}
{[%emt 00:02:17]} Nxg4 {[%clk 00:24:33]} {[%emt 00:00:12]} 17. hxg4 {[%clk
00:19:08]} {[%emt 00:00:09]} Bxg4 {[%clk 00:24:42]} {[%emt 00:00:01]} 18. Bh3
{[%clk 00:17:08]} {[%emt 00:02:10]} Bxh3 {[%clk 00:24:34]} {[%emt 00:00:18]} 19.
Rxh3 {[%clk 00:17:17]} {[%emt 00:00:02]} g5 {[%clk 00:24:41]} {[%emt 00:00:02]}
20. Bg3 {[%clk 00:16:34]} {[%emt 00:00:53]} Rhh8 {[%clk 00:23:38]} {[%emt
00:01:13]} 21. Qc3 {[%clk 00:14:24]} {[%emt 00:02:20]} Rhe8 {[%clk 00:17:28]}
{[%emt 00:06:20]} 22. Rhh1 {[%clk 00:08:45]} {[%emt 00:05:49]} hxg3 {[%clk
00:16:10]} {[%emt 00:01:28]} 23. Nxg3 {[%clk 00:08:38]} {[%emt 00:00:16]} Rd3
{[%clk 00:15:03]} {[%emt 00:01:17]} 24. Qa5 {[%clk 00:08:00]} {[%emt 00:00:48]}
Kb8 {[%clk 00:14:58]} {[%emt 00:00:16]} 25. Qf5 {[%clk 00:07:02]} {[%emt
00:01:07]} b5 {[%clk 00:13:19]} {[%emt 00:01:50]} 26. cxb5 {[%clk 00:03:49]}
{[%emt 00:03:24]} Rd5 {[%clk 00:13:16]} {[%emt 00:00:12]} 27. Qh7 {[%clk
00:02:44]} {[%emt 00:01:14]} Qf6 {[%clk 00:12:45]} {[%emt 00:00:42]} 28. d4
{[%clk 00:02:08]} {[%emt 00:00:46]} exd3 {[%clk 00:10:18]} {[%emt 00:02:36]} 29.
Rd2 {[%clk 00:02:17]} Qc3 {[%clk 00:10:07]} {[%emt 00:00:22]} 30. Rhd1 {[%clk
00:02:25]} {[%emt 00:00:02]} Rc5 {[%clk 00:09:38]} {[%emt 00:00:40]} 31. Qh1
{[%clk 00:02:33]} cxb5 {[%clk 00:09:17]} {[%emt 00:00:31]} 32. Qf1 {[%clk
00:02:21]} {[%emt 00:00:22]} Qc2+ {[%clk 00:08:58]} {[%emt 00:00:29]} 0-1

[Event "Vastgota Open 2022"]
[Site "Skara stadshotell, Jarnvagsgatan 5, Skara, Sweden"]
[Date "2022.10.30"]
[Round "9.2"]
[White "Golubka, Petro"]
[Black "Bellon Lopez, Juan Manuel"]
[Result "1-0"]
[TimeControl "30 minutes + 10 seconds per move from move one."]
[WhiteTitle "GM"]
[BlackTitle "GM"]
[WhiteFideId "14114224"]
[BlackFideId "2200031"]
[WhiteElo "2335"]
[BlackElo "2347"]

1. e4 {[%clk 00:28:43]} {[%emt 00:01:37]} c5 {[%clk 00:30:17]} {[%emt
00:00:03]} 2. b3 {[%clk 00:28:06]} {[%emt 00:00:45]} b6 {[%clk 00:30:17]}
{[%emt 00:00:11]} 3. Bb2 {[%clk 00:28:13]} {[%emt 00:00:04]} Bb7 {[%clk
00:30:26]} 4. Nc3 {[%clk 00:28:16]} {[%emt 00:00:07]} g6 {[%clk 00:28:29]}
{[%emt 00:02:05]} 5. Nb5 {[%clk 00:27:27]} {[%emt 00:01:00]} f6 {[%clk
00:28:10]} {[%emt 00:00:29]} 6. d4 {[%clk 00:25:24]} {[%emt 00:02:14]} a6
{[%clk 00:28:12]} {[%emt 00:00:07]} 7. Nc3 {[%clk 00:25:27]} {[%emt 00:00:07]}
cxd4 {[%clk 00:28:00]} {[%emt 00:00:22]} 8. Qxd4 {[%clk 00:25:27]} {[%emt
00:00:10]} Nc6 {[%clk 00:27:30]} {[%emt 00:00:40]} 9. Qd2 {[%clk 00:25:27]}
{[%emt 00:00:10]} Rc8 {[%clk 00:24:46]} {[%emt 00:02:54]} 10. f4 {[%clk
00:25:07]} {[%emt 00:00:30]} e6 {[%clk 00:24:30]} {[%emt 00:00:26]} 11. Nf3
{[%clk 00:25:06]} {[%emt 00:00:11]} Qc7 {[%clk 00:24:28]} {[%emt 00:00:12]} 12.
a3 {[%clk 00:22:39]} {[%emt 00:02:38]} b5 {[%clk 00:23:22]} {[%emt 00:01:15]}
13. Be2 {[%clk 00:21:09]} {[%emt 00:01:40]} Nh6 {[%clk 00:23:01]} {[%emt
00:00:31]} 14. h3 {[%clk 00:20:17]} {[%emt 00:01:04]} Nf7 {[%clk 00:21:52]}
{[%emt 00:01:18]} 15. O-O {[%clk 00:19:25]} {[%emt 00:01:01]} Bc5+ {[%clk
00:20:10]} {[%emt 00:01:53]} 16. Kh1 {[%clk 00:19:17]} {[%emt 00:00:19]} O-O
{[%clk 00:20:16]} {[%emt 00:00:04]} 17. Rad1 {[%clk 00:18:19]} {[%emt
00:01:07]} Rfd8 {[%clk 00:18:48]} {[%emt 00:01:37]} 18. Bd3 {[%clk 00:15:45]}
{[%emt 00:02:45]} Nd4 {[%clk 00:17:42]} {[%emt 00:01:16]} 19. Nxd4 {[%clk
00:15:06]} {[%emt 00:00:49]} Bxd4 {[%clk 00:17:49]} {[%emt 00:00:03]} 20. Nxb5
{[%clk 00:14:52]} {[%emt 00:00:25]} axb5 {[%clk 00:17:22]} {[%emt 00:00:38]} 21.
Bxd4 {[%clk 00:14:52]} {[%emt 00:00:10]} e5 {[%clk 00:16:06]} {[%emt 00:01:26]}
22. fxe5 {[%clk 00:14:38]} {[%emt 00:00:24]} fxe5 {[%clk 00:16:15]} {[%emt
00:00:01]} 23. Bg1 {[%clk 00:11:41]} {[%emt 00:03:07]} d5 {[%clk 00:15:44]}
{[%emt 00:00:40]} 24. Bxb5 {[%clk 00:11:17]} {[%emt 00:00:35]} dxe4 {[%emt
00:00:31]} 25. Qb4 {[%clk 00:09:35]} {[%emt 00:01:51]} Nd6 {[%clk 00:11:31]}
{[%emt 00:04:02]} 26. Bc4+ {[%clk 00:06:36]} {[%emt 00:03:09]} Nxc4 {[%clk
00:11:35]} {[%emt 00:00:06]} 27. Rxd8+ {[%clk 00:06:20]} {[%emt 00:00:26]} Rxd8
{[%clk 00:11:22]} {[%emt 00:00:23]} 28. bxc4 {[%clk 00:06:16]} {[%emt
00:00:15]} Ba6 {[%clk 00:07:02]} {[%emt 00:04:30]} 29. Rf6 {[%clk 00:05:26]}
{[%emt 00:00:59]} Rb8 {[%clk 00:05:41]} {[%emt 00:01:31]} 30. Bb6 {[%clk
00:05:09]} {[%emt 00:00:28]} Qd7 {[%clk 00:05:03]} {[%emt 00:00:47]} 31. Qc5
{[%clk 00:04:38]} {[%emt 00:00:39]} Re8 {[%clk 00:03:11]} {[%emt 00:02:04]} 32.
Qd5+ {[%clk 00:03:44]} {[%emt 00:01:05]} Qxd5 {[%clk 00:02:56]} {[%emt
00:00:24]} 33. cxd5 {[%clk 00:03:44]} {[%emt 00:00:10]} Kg7 {[%clk 00:02:48]}
{[%emt 00:00:20]} 34. Rc6 {[%clk 00:03:44]} {[%emt 00:00:08]} Bb5 {[%clk
00:01:59]} {[%emt 00:01:00]} 35. Rc7+ {[%clk 00:03:48]} {[%emt 00:00:06]} Kf6
{[%clk 00:02:05]} {[%emt 00:00:04]} 36. c4 {[%clk 00:03:53]} {[%emt 00:00:05]}
Ba4 {[%clk 00:02:10]} {[%emt 00:00:05]} 37. Be3 {[%clk 00:03:55]} {[%emt
00:00:07]} Rb8 {[%clk 00:02:11]} {[%emt 00:00:09]} 38. Ra7 {[%clk 00:03:04]}
{[%emt 00:01:01]} Be8 {[%clk 00:01:02]} {[%emt 00:01:20]} 39. Ra6+ {[%clk
00:02:46]} {[%emt 00:00:28]} Kf7 {[%clk 00:01:01]} {[%emt 00:00:10]} 40. Bg5
{[%clk 00:02:45]} {[%emt 00:00:11]} Rc8 {[%clk 00:00:32]} {[%emt 00:00:41]} 41.
Ra7+ {[%clk 00:02:38]} {[%emt 00:00:16]} Kg8 {[%clk 00:00:27]} {[%emt
00:00:14]} 42. d6 {[%clk 00:02:41]} {[%emt 00:00:07]} e3 {[%clk 00:00:24]}
{[%emt 00:00:14]} 43. Bxe3 {[%clk 00:02:33]} {[%emt 00:00:17]} Rd8 {[%clk
00:00:26]} {[%emt 00:00:09]} 44. c5 {[%clk 00:02:26]} {[%emt 00:00:17]} Rd7
{[%clk 00:00:31]} {[%emt 00:00:05]} 45. Ra8 {[%clk 00:02:21]} {[%emt 00:00:15]}
Kf7 {[%emt 00:00:02]} 46. Kh2 {[%clk 00:01:53]} {[%emt 00:00:36]} Rb7 {[%clk
00:00:50]} 47. Rxe8 {[%clk 00:01:37]} {[%emt 00:00:26]} Kxe8 {[%clk 00:00:59]}
{[%emt 00:00:01]} 48. c6 {[%clk 00:01:37]} {[%emt 00:00:11]} Rb8 {[%clk
00:00:13]} {[%emt 00:00:56]} 49. Bg5 {[%clk 00:01:30]} {[%emt 00:00:17]} 1-0